[Event "Betsys MČR v online bleskovém šachu 2021"]
[Site "Chess.com"]
[Date "2021.04.17"]
[Round "2"]
[White "Petulak08"]
[Black "psvoboda72"]
[Result "0-1"]
[WhiteElo "1216"]
[BlackElo "1738"]
[TimeControl "180+1"]
[EndTime "9:18:04 PDT"]
[Termination "Uživatel psvoboda72 zvítězil matem"]

1. e4 {[%clk 0:03:00.9]} 1... e5 {[%clk 0:02:58.7]} 2. Nf3 {[%clk 0:03:00]} 2...
Nc6 {[%clk 0:02:59.1]} 3. d4 {[%clk 0:03:00.2]} 3... exd4 {[%clk 0:02:57.5]} 4.
Bc4 {[%clk 0:03:00.3]} 4... Bc5 {[%clk 0:02:40.6]} 5. Ng5 {[%clk 0:02:54]} 5...
Nh6 {[%clk 0:02:34.8]} 6. Qf3 {[%clk 0:02:50.7]} 6... Ne5 {[%clk 0:02:28.4]} 7.
Qb3 {[%clk 0:02:30.1]} 7... O-O {[%clk 0:02:22.6]} 8. f4 {[%clk 0:02:04.1]} 8...
Nxc4 {[%clk 0:02:14.5]} 9. Qxc4 {[%clk 0:02:04.2]} 9... d6 {[%clk 0:02:11.5]}
10. e5 {[%clk 0:02:02.4]} 10... Ng4 {[%clk 0:01:54.5]} 11. exd6 {[%clk
0:01:57.7]} 11... cxd6 {[%clk 0:01:48.4]} 12. h3 {[%clk 0:01:50.2]} 12... Qe7+
{[%clk 0:01:45.5]} 13. Kf1 {[%clk 0:01:44.4]} 13... Ne3+ {[%clk 0:01:43]} 14.
Bxe3 {[%clk 0:01:34.3]} 14... dxe3 {[%clk 0:01:41.9]} 15. Ne4 {[%clk 0:01:31.2]}
15... Bb6 {[%clk 0:01:36.6]} 16. Nbc3 {[%clk 0:01:26]} 16... Be6 {[%clk
0:01:35.9]} 17. Qd3 {[%clk 0:01:22.3]} 17... d5 {[%clk 0:01:27.7]} 18. Nxd5
{[%clk 0:01:18.4]} 18... Bxd5 {[%clk 0:01:20.8]} 19. Qxd5 {[%clk 0:01:18]} 19...
Rfd8 {[%clk 0:01:17.7]} 20. Qc4 {[%clk 0:01:16.7]} 20... Rac8 {[%clk 0:01:14.6]}
21. Qa4 {[%clk 0:01:03.8]} 21... Rd4 {[%clk 0:01:11.6]} 22. Qb3 {[%clk
0:00:56.5]} 22... Rxe4 {[%clk 0:01:09.2]} 23. Ke2 {[%clk 0:00:54.9]} 23... Rd4
{[%clk 0:01:03.7]} 24. Rad1 {[%clk 0:00:53.4]} 24... Rcd8 {[%clk 0:00:59.9]} 25.
Rd3 {[%clk 0:00:46.1]} 25... Rxd3 {[%clk 0:00:57.9]} 26. cxd3 {[%clk 0:00:45.3]}
26... h6 {[%clk 0:00:57.4]} 27. Rc1 {[%clk 0:00:43.7]} 27... Qf6 {[%clk
0:00:52.5]} 28. g3 {[%clk 0:00:39.6]} 28... Qd4 {[%clk 0:00:51.5]} 29. Rc4
{[%clk 0:00:36.2]} 29... Qd5 {[%clk 0:00:49.6]} 30. Qc3 {[%clk 0:00:31.9]} 30...
Qg2+ {[%clk 0:00:48.1]} 31. Kd1 {[%clk 0:00:28.6]} 31... e2+ {[%clk 0:00:47]}
32. Kd2 {[%clk 0:00:22.8]} 32... Qf1 {[%clk 0:00:44.1]} 33. Qc1 {[%clk
0:00:21.3]} 33... Qxc1+ {[%clk 0:00:42.3]} 34. Rxc1 {[%clk 0:00:21.1]} 34... Re8
{[%clk 0:00:41.4]} 35. b4 {[%clk 0:00:16.5]} 35... Bf2 {[%clk 0:00:40.2]} 36.
Re1 {[%clk 0:00:05.7]} 36... Bxe1+ {[%clk 0:00:38.3]} 37. Kxe1 {[%clk
0:00:05.7]} 37... g5 {[%clk 0:00:37]} 38. fxg5 {[%clk 0:00:05.3]} 38... hxg5
{[%clk 0:00:36.9]} 39. g4 {[%clk 0:00:06.2]} 39... Kg7 {[%clk 0:00:35.7]} 40. d4
{[%clk 0:00:06.6]} 40... Kf6 {[%clk 0:00:35.1]} 41. d5 {[%clk 0:00:06.1]} 41...
Ke5 {[%clk 0:00:33.6]} 42. d6 {[%clk 0:00:06.9]} 42... Kxd6 {[%clk 0:00:32.7]}
43. b5 {[%clk 0:00:06.9]} 43... Kc5 {[%clk 0:00:32.3]} 44. a4 {[%clk 0:00:07.3]}
44... Kb4 {[%clk 0:00:32.4]} 45. a5 {[%clk 0:00:07.8]} 45... Kxb5 {[%clk
0:00:31.4]} 46. a6 {[%clk 0:00:08.4]} 46... Kxa6 {[%clk 0:00:29.7]} 47. h4
{[%clk 0:00:09]} 47... gxh4 {[%clk 0:00:28.8]} 48. g5 {[%clk 0:00:08.9]} 48...
h3 {[%clk 0:00:27.7]} 49. g6 {[%clk 0:00:08.8]} 49... h2 {[%clk 0:00:26.4]} 50.
gxf7 {[%clk 0:00:09.2]} 50... h1=Q+ {[%clk 0:00:23.6]} 51. Kd2 {[%clk 0:00:09]}
51... e1=Q+ {[%clk 0:00:22]} 52. Kd3 {[%clk 0:00:08.5]} 52... Qhe4# {[%clk
0:00:19.6]} 0-1

[Event "Betsys MČR v online bleskovém šachu 2021"]
[Site "Chess.com"]
[Date "2021.04.17"]
[Round "2"]
[White "handlovskyjachym"]
[Black "zarathutra"]
[Result "0-1"]
[WhiteElo "1402"]
[BlackElo "1824"]
[TimeControl "180+1"]
[EndTime "9:18:06 PDT"]
[Termination "Uživatel zarathutra zvítězil matem"]

1. e4 {[%clk 0:02:49.5]} 1... c6 {[%clk 0:02:59.9]} 2. Nf3 {[%clk 0:02:48.4]}
2... d5 {[%clk 0:02:59.1]} 3. exd5 {[%clk 0:02:47.7]} 3... cxd5 {[%clk
0:02:58.7]} 4. d4 {[%clk 0:02:47.9]} 4... Nc6 {[%clk 0:02:57.2]} 5. Nc3 {[%clk
0:02:46.5]} 5... Bg4 {[%clk 0:02:56.5]} 6. Be2 {[%clk 0:02:46]} 6... e6 {[%clk
0:02:54.7]} 7. Bf4 {[%clk 0:02:45.1]} 7... Bd6 {[%clk 0:02:43.2]} 8. Bg3 {[%clk
0:02:39.6]} 8... Bxg3 {[%clk 0:02:39.3]} 9. fxg3 {[%clk 0:02:36]} 9... Qb6
{[%clk 0:02:39.1]} 10. Na4 {[%clk 0:02:23.8]} 10... Qb4+ {[%clk 0:02:29.5]} 11.
c3 {[%clk 0:02:18.1]} 11... Qa5 {[%clk 0:02:27.8]} 12. O-O {[%clk 0:02:16.8]}
12... Nge7 {[%clk 0:02:18.8]} 13. Ne5 {[%clk 0:02:10.3]} 13... Bxe2 {[%clk
0:02:05.9]} 14. Nxc6 {[%clk 0:01:58.7]} 14... bxc6 {[%clk 0:01:47.2]} 15. Qb3
{[%clk 0:01:35.7]} 15... Bxf1 {[%clk 0:01:40]} 16. Rxf1 {[%clk 0:01:35.6]} 16...
O-O {[%clk 0:01:37.3]} 17. Nc5 {[%clk 0:01:32.9]} 17... Rfb8 {[%clk 0:01:15.3]}
18. Qc2 {[%clk 0:01:31]} 18... Qxa2 {[%clk 0:01:09.8]} 19. Qf2 {[%clk
0:01:27.1]} 19... Rxb2 {[%clk 0:00:45.5]} 20. Qxf7+ {[%clk 0:01:25.6]} 20... Kh8
{[%clk 0:00:45.6]} 21. Qf3 {[%clk 0:00:42.2]} 21... Rb1 {[%clk 0:00:24.4]} 22.
Nxe6 {[%clk 0:00:33.8]} 22... Rxf1+ {[%clk 0:00:19.4]} 23. Qxf1 {[%clk
0:00:33.5]} 23... Ng6 {[%clk 0:00:16.7]} 24. Qf7 {[%clk 0:00:29.8]} 24... Rg8
{[%clk 0:00:16.2]} 25. Qf2 {[%clk 0:00:27.4]} 25... Qb1+ {[%clk 0:00:15.4]} 26.
Qf1 {[%clk 0:00:26.3]} 26... Qxf1+ {[%clk 0:00:16.1]} 27. Kxf1 {[%clk
0:00:26.4]} 27... a5 {[%clk 0:00:16.8]} 28. Nc5 {[%clk 0:00:25.7]} 28... Rb8
{[%clk 0:00:15.5]} 29. Ke2 {[%clk 0:00:24.9]} 29... Rb2+ {[%clk 0:00:15.4]} 30.
Kd3 {[%clk 0:00:24.6]} 30... Rxg2 {[%clk 0:00:15.4]} 31. c4 {[%clk 0:00:24.7]}
31... dxc4+ {[%clk 0:00:15.2]} 32. Kxc4 {[%clk 0:00:24.9]} 32... Rxh2 {[%clk
0:00:15.4]} 33. Na6 {[%clk 0:00:22.9]} 33... Rg2 {[%clk 0:00:15]} 34. Kc5 {[%clk
0:00:22.6]} 34... Rxg3 {[%clk 0:00:14.9]} 35. Kxc6 {[%clk 0:00:22.9]} 35... a4
{[%clk 0:00:15.5]} 36. Nb4 {[%clk 0:00:22.2]} 36... a3 {[%clk 0:00:15.9]} 37.
Kc5 {[%clk 0:00:21.9]} 37... Rb3 {[%clk 0:00:15.3]} 38. d5 {[%clk 0:00:15.6]}
38... Rxb4 {[%clk 0:00:14.4]} 39. d6 {[%clk 0:00:15.8]} 39... a2 {[%clk
0:00:15.3]} 40. d7 {[%clk 0:00:15.5]} 40... Rb8 {[%clk 0:00:14.5]} 41. Kc6
{[%clk 0:00:14.7]} 41... a1=Q {[%clk 0:00:14]} 42. Kc7 {[%clk 0:00:14.7]} 42...
Qa7+ {[%clk 0:00:14.6]} 43. Kd6 {[%clk 0:00:13.8]} 43... Qxd7+ {[%clk 0:00:15]}
44. Kxd7 {[%clk 0:00:14.1]} 44... Kg8 {[%clk 0:00:15.7]} 45. Kc7 {[%clk
0:00:14.1]} 45... Re8 {[%clk 0:00:14.9]} 46. Kd7 {[%clk 0:00:14.2]} 46... Kf7
{[%clk 0:00:15.8]} 47. Kd6 {[%clk 0:00:14.1]} 47... h6 {[%clk 0:00:16.7]} 48.
Kd5 {[%clk 0:00:14.3]} 48... h5 {[%clk 0:00:17.6]} 49. Kd4 {[%clk 0:00:13.4]}
49... h4 {[%clk 0:00:18.5]} 50. Kd5 {[%clk 0:00:13.8]} 50... h3 {[%clk
0:00:19.4]} 51. Kd6 {[%clk 0:00:14.2]} 51... h2 {[%clk 0:00:20.3]} 52. Kd5
{[%clk 0:00:14.7]} 52... h1=Q+ {[%clk 0:00:21.2]} 53. Kd4 {[%clk 0:00:15.4]}
53... Qd1+ {[%clk 0:00:21]} 54. Kc3 {[%clk 0:00:15.3]} 54... Qd7 {[%clk
0:00:21.6]} 55. Kb4 {[%clk 0:00:15.5]} 55... Rc8 {[%clk 0:00:22.5]} 56. Ka5
{[%clk 0:00:14.5]} 56... Qb7 {[%clk 0:00:23.4]} 57. Ka4 {[%clk 0:00:13.7]} 57...
Ra8# {[%clk 0:00:24.3]} 0-1

[Event "Betsys MČR v online bleskovém šachu 2021"]
[Site "Chess.com"]
[Date "2021.04.17"]
[Round "2"]
[White "Mimochodem"]
[Black "valid88"]
[Result "1-0"]
[WhiteElo "1788"]
[BlackElo "1340"]
[TimeControl "180+1"]
[EndTime "9:18:07 PDT"]
[Termination "Uživatel Mimochodem zvítězil na čas"]

1. e4 {[%clk 0:03:00.9]} 1... c6 {[%clk 0:02:58.2]} 2. Nf3 {[%clk 0:03:00.8]}
2... d5 {[%clk 0:02:58.4]} 3. exd5 {[%clk 0:03:01.4]} 3... cxd5 {[%clk
0:02:58.7]} 4. d4 {[%clk 0:03:02]} 4... Nf6 {[%clk 0:02:59.1]} 5. c4 {[%clk
0:03:02.3]} 5... Bg4 {[%clk 0:02:59.7]} 6. Nc3 {[%clk 0:03:02.4]} 6... e6 {[%clk
0:02:59.5]} 7. b3 {[%clk 0:03:00.6]} 7... Bb4 {[%clk 0:02:57.3]} 8. Qc2 {[%clk
0:02:59.4]} 8... Bf5 {[%clk 0:02:53.6]} 9. Bd3 {[%clk 0:02:57.6]} 9... Ne4
{[%clk 0:02:49]} 10. Bb2 {[%clk 0:02:57.3]} 10... Qa5 {[%clk 0:02:39.9]} 11. Rc1
{[%clk 0:02:55.8]} 11... Nc6 {[%clk 0:02:14]} 12. O-O {[%clk 0:02:55.6]} 12...
Nxc3 {[%clk 0:02:09.9]} 13. Bxc3 {[%clk 0:02:51.7]} 13... Bxc3 {[%clk
0:02:09.7]} 14. Qxc3 {[%clk 0:02:52]} 14... Qxc3 {[%clk 0:02:00.8]} 15. Rxc3
{[%clk 0:02:51.8]} 15... Bg4 {[%clk 0:02:00.7]} 16. Ne5 {[%clk 0:02:49.4]} 16...
Nxe5 {[%clk 0:01:49.7]} 17. dxe5 {[%clk 0:02:49.5]} 17... dxc4 {[%clk
0:01:42.1]} 18. Rxc4 {[%clk 0:02:43.4]} 18... O-O {[%clk 0:01:41.7]} 19. Rxg4
{[%clk 0:02:42.8]} 19... g6 {[%clk 0:01:39.3]} 20. Bc4 {[%clk 0:02:40.5]} 20...
Rfd8 {[%clk 0:01:38.4]} 21. a4 {[%clk 0:02:37.2]} 21... a6 {[%clk 0:01:36.6]}
22. Rg3 {[%clk 0:02:36.5]} 22... Rab8 {[%clk 0:01:34.5]} 23. Rd3 {[%clk
0:02:33.4]} 23... Rdc8 {[%clk 0:01:30]} 24. Rfd1 {[%clk 0:02:27.9]} 24... b5
{[%clk 0:01:26.2]} 25. axb5 {[%clk 0:02:24.8]} 25... axb5 {[%clk 0:01:26.3]} 26.
Bxb5 {[%clk 0:02:19.4]} 26... Rxb5 {[%clk 0:01:26]} 27. Rd8+ {[%clk 0:02:19.5]}
27... Rxd8 {[%clk 0:01:26.1]} 28. Rxd8+ {[%clk 0:02:19.1]} 28... Kg7 {[%clk
0:01:26.4]} 29. Rd3 {[%clk 0:02:18.5]} 29... Rxe5 {[%clk 0:01:25]} 30. f3 {[%clk
0:02:19]} 30... Rb5 {[%clk 0:01:24.8]} 31. Kf2 {[%clk 0:02:18.9]} 31... Kf6
{[%clk 0:01:25.1]} 32. Ke3 {[%clk 0:02:19.3]} 32... Ke7 {[%clk 0:01:25.5]} 33.
Kd4 {[%clk 0:02:17.4]} 33... Kd6 {[%clk 0:01:23.2]} 34. Kc4+ {[%clk 0:02:17.8]}
34... Kc6 {[%clk 0:01:23.2]} 35. b4 {[%clk 0:02:12.7]} 35... Rh5 {[%clk
0:01:17.9]} 36. h3 {[%clk 0:02:10.6]} 36... Rh4+ {[%clk 0:01:06.9]} 37. Kb3
{[%clk 0:02:09.1]} 37... Kb5 {[%clk 0:01:03]} 38. Rd7 {[%clk 0:02:01.6]} 38...
Rxb4+ {[%clk 0:00:54.5]} 39. Kc3 {[%clk 0:02:01.7]} 39... Rc4+ {[%clk
0:00:54.4]} 40. Kd3 {[%clk 0:02:00.4]} 40... Rf4 {[%clk 0:00:45.7]} 41. Ke3
{[%clk 0:01:57.6]} 41... Rf5 {[%clk 0:00:44.5]} 42. Rc7 {[%clk 0:01:56]} 42...
Kb6 {[%clk 0:00:43.2]} 43. Rc8 {[%clk 0:01:55.7]} 43... Kb7 {[%clk 0:00:42.5]}
44. Rc4 {[%clk 0:01:54.3]} 44... Rd5 {[%clk 0:00:39]} 45. g4 {[%clk 0:01:50.7]}
45... h6 {[%clk 0:00:34.4]} 46. Rf4 {[%clk 0:01:47]} 46... Rd7 {[%clk
0:00:32.5]} 47. Rc4 {[%clk 0:01:41.2]} 47... f6 {[%clk 0:00:30.3]} 48. h4 {[%clk
0:01:41]} 48... Rd6 {[%clk 0:00:28.5]} 49. f4 {[%clk 0:01:37.8]} 49... Kb6
{[%clk 0:00:24.6]} 50. h5 {[%clk 0:01:36]} 50... gxh5 {[%clk 0:00:21.1]} 51.
gxh5 {[%clk 0:01:35.8]} 51... Rd5 {[%clk 0:00:21.3]} 52. Re4 {[%clk 0:01:34.5]}
52... Rd6 {[%clk 0:00:12.8]} 53. Rc4 {[%clk 0:01:33.2]} 53... Kb5 {[%clk
0:00:12.7]} 54. Rc8 {[%clk 0:01:31.9]} 54... Rd5 {[%clk 0:00:12.7]} 55. Re8
{[%clk 0:01:30.9]} 55... Rxh5 {[%clk 0:00:12.1]} 56. Rxe6 {[%clk 0:01:30.8]}
56... Rf5 {[%clk 0:00:09.3]} 57. Ke4 {[%clk 0:01:29.2]} 57... Rc5 {[%clk
0:00:09]} 58. Rxf6 {[%clk 0:01:27.7]} 58... h5 {[%clk 0:00:09.4]} 59. Rh6 {[%clk
0:01:26]} 59... Rc4+ {[%clk 0:00:08.5]} 60. Ke3 {[%clk 0:01:24.2]} 60... Rc3+
{[%clk 0:00:08.1]} 61. Kd2 {[%clk 0:01:23.1]} 61... Rc5 {[%clk 0:00:07.5]} 62.
Ke2 {[%clk 0:01:21.3]} 62... Rf5 {[%clk 0:00:07.2]} 63. Kf3 {[%clk 0:01:21.1]}
63... Kc5 {[%clk 0:00:06.2]} 64. Ra6 {[%clk 0:01:18.7]} 64... Kd4 {[%clk
0:00:02.6]} 65. Ra4+ {[%clk 0:01:18.4]} 65... Kd3 {[%clk 0:00:02.9]} 66. Rb4
{[%clk 0:01:16.4]} 66... Kc3 {[%clk 0:00:02.9]} 67. Re4 {[%clk 0:01:14.7]} 67...
Kd3 {[%clk 0:00:01.4]} 68. Re7 {[%clk 0:01:13.8]} 68... Kc4 {[%clk 0:00:01.2]}
69. Kg3 {[%clk 0:01:10.9]} 69... Kd3 {[%clk 0:00:01.1]} 70. Re6 {[%clk
0:01:10.4]} 70... Rd5 {[%clk 0:00:01.3]} 71. Kh4 {[%clk 0:01:08.3]} 1-0

[Event "Betsys MČR v online bleskovém šachu 2021"]
[Site "Chess.com"]
[Date "2021.04.17"]
[Round "2"]
[White "vasekpaulus"]
[Black "Countryside_58"]
[Result "0-1"]
[WhiteElo "2059"]
[BlackElo "2451"]
[TimeControl "180+1"]
[EndTime "9:18:09 PDT"]
[Termination "Uživatel Countryside_58 zvítězil po vzdání soupeře"]

1. e4 {[%clk 0:03:00.9]} 1... Nf6 {[%clk 0:02:59.1]} 2. e5 {[%clk 0:02:57.7]}
2... Ng8 {[%clk 0:02:58.7]} 3. Nf3 {[%clk 0:02:54.3]} 3... d5 {[%clk 0:02:58.9]}
4. d4 {[%clk 0:02:54.1]} 4... Bg4 {[%clk 0:02:57.3]} 5. Be2 {[%clk 0:02:52.2]}
5... e6 {[%clk 0:02:57.3]} 6. O-O {[%clk 0:02:49.6]} 6... c5 {[%clk 0:02:56.4]}
7. c3 {[%clk 0:02:46.3]} 7... Nc6 {[%clk 0:02:56.3]} 8. h3 {[%clk 0:02:40.8]}
8... Bxf3 {[%clk 0:02:53.8]} 9. Bxf3 {[%clk 0:02:40.6]} 9... cxd4 {[%clk
0:02:54.5]} 10. cxd4 {[%clk 0:02:40.7]} 10... Qb6 {[%clk 0:02:55.1]} 11. Be3
{[%clk 0:02:17.9]} 11... Qxb2 {[%clk 0:02:54.5]} 12. Nd2 {[%clk 0:02:17.6]}
12... Bb4 {[%clk 0:02:53.5]} 13. Nb3 {[%clk 0:01:52.7]} 13... Qa3 {[%clk
0:02:35]} 14. Qe2 {[%clk 0:01:30]} 14... Nge7 {[%clk 0:02:30]} 15. g4 {[%clk
0:01:06.5]} 15... a6 {[%clk 0:02:14]} 16. Kh2 {[%clk 0:01:04]} 16... h5 {[%clk
0:02:06.1]} 17. gxh5 {[%clk 0:00:45.9]} 17... Rc8 {[%clk 0:02:04.4]} 18. Bg4
{[%clk 0:00:44]} 18... Qa4 {[%clk 0:01:56.4]} 19. f4 {[%clk 0:00:38.4]} 19...
Qb5 {[%clk 0:01:54.4]} 20. Qf2 {[%clk 0:00:36.9]} 20... Nf5 {[%clk 0:01:49.5]}
21. Bxf5 {[%clk 0:00:35]} 21... exf5 {[%clk 0:01:48.6]} 22. Rg1 {[%clk
0:00:33.8]} 22... Bf8 {[%clk 0:01:33.4]} 23. Rae1 {[%clk 0:00:29.7]} 23... Rxh5
{[%clk 0:01:25.4]} 24. Bc1 {[%clk 0:00:25.3]} 24... g6 {[%clk 0:01:21.5]} 25. e6
{[%clk 0:00:24.8]} 25... fxe6 {[%clk 0:01:19.4]} 26. Rxe6+ {[%clk 0:00:24.3]}
26... Ne7 {[%clk 0:01:17.1]} 27. Ba3 {[%clk 0:00:19.8]} 27... Qd3 {[%clk
0:01:12]} 28. Re3 {[%clk 0:00:18.2]} 28... Qc2 {[%clk 0:01:07.2]} 29. Re2 {[%clk
0:00:17.4]} 29... Qc6 {[%clk 0:01:02.4]} 30. Rg3 {[%clk 0:00:16.6]} 30... Kf7
{[%clk 0:00:59.4]} 31. Bxe7 {[%clk 0:00:13.6]} 31... Bxe7 {[%clk 0:00:57.8]} 32.
Rge3 {[%clk 0:00:14.5]} 32... Bf6 {[%clk 0:00:55.4]} 33. Qg2 {[%clk 0:00:12.2]}
33... Rch8 {[%clk 0:00:53.1]} 34. Nc5 {[%clk 0:00:07.5]} 34... b6 {[%clk
0:00:51.1]} 35. Ne6 {[%clk 0:00:07.4]} 35... Re8 {[%clk 0:00:39]} 36. Ng5+
{[%clk 0:00:06.4]} 36... Bxg5 {[%clk 0:00:38.6]} 37. fxg5 {[%clk 0:00:06.7]}
37... Rxe3 {[%clk 0:00:37.2]} 38. Rxe3 {[%clk 0:00:06.6]} 38... Qc7+ {[%clk
0:00:36.5]} 39. Re5 {[%clk 0:00:05.6]} 39... Qd6 {[%clk 0:00:25.9]} 40. Qe2
{[%clk 0:00:05.4]} 40... Qa3 {[%clk 0:00:22.3]} 41. Re3 {[%clk 0:00:04.6]} 41...
Qb4 {[%clk 0:00:20.4]} 42. Re8 {[%clk 0:00:02.9]} 42... Qd6+ {[%clk 0:00:18.9]}
43. Re5 {[%clk 0:00:02.9]} 43... Rxg5 {[%clk 0:00:18.8]} 44. h4 {[%clk 0:00:02]}
44... Rg4 {[%clk 0:00:18.6]} 45. Kh3 {[%clk 0:00:02.3]} 45... Rxd4 {[%clk
0:00:18.4]} 46. Re6 {[%clk 0:00:02.2]} 46... Qxe6 {[%clk 0:00:17]} 0-1

[Event "Betsys MČR v online bleskovém šachu 2021"]
[Site "Chess.com"]
[Date "2021.04.17"]
[Round "2"]
[White "DenryS"]
[Black "HonzaVykouk"]
[Result "1/2-1/2"]
[WhiteElo "2123"]
[BlackElo "2693"]
[TimeControl "180+1"]
[EndTime "9:18:13 PDT"]
[Termination "Remíza – nedostatek materiálu"]

1. d4 {[%clk 0:03:00.9]} 1... Nf6 {[%clk 0:02:59.7]} 2. Nf3 {[%clk 0:03:00.2]}
2... g6 {[%clk 0:03:00.1]} 3. Nc3 {[%clk 0:02:58.3]} 3... Bg7 {[%clk 0:03:00.4]}
4. Bf4 {[%clk 0:02:56.9]} 4... d5 {[%clk 0:03:00.2]} 5. Qd2 {[%clk 0:02:53.8]}
5... h6 {[%clk 0:03:00]} 6. Ne5 {[%clk 0:02:48.3]} 6... c6 {[%clk 0:02:58.9]} 7.
O-O-O {[%clk 0:02:46.1]} 7... b5 {[%clk 0:02:58.3]} 8. f3 {[%clk 0:02:42.9]}
8... a5 {[%clk 0:02:57.9]} 9. Kb1 {[%clk 0:02:42.3]} 9... a4 {[%clk 0:02:57.8]}
10. a3 {[%clk 0:02:34]} 10... g5 {[%clk 0:02:35.1]} 11. Bg3 {[%clk 0:02:31.2]}
11... Bf5 {[%clk 0:02:35.2]} 12. h4 {[%clk 0:02:28.2]} 12... g4 {[%clk
0:02:35.2]} 13. e4 {[%clk 0:02:26.8]} 13... dxe4 {[%clk 0:02:35.2]} 14. Qf4
{[%clk 0:02:23]} 14... e6 {[%clk 0:02:28]} 15. fxg4 {[%clk 0:02:16.8]} 15... Bg6
{[%clk 0:01:58.8]} 16. Nxg6 {[%clk 0:02:15.9]} 16... fxg6 {[%clk 0:01:59.7]} 17.
Nxe4 {[%clk 0:02:16.3]} 17... O-O {[%clk 0:01:48.4]} 18. Nxf6+ {[%clk
0:01:55.1]} 18... Rxf6 {[%clk 0:01:48.1]} 19. Qe4 {[%clk 0:01:52.5]} 19... Qd5
{[%clk 0:01:43.4]} 20. Bd3 {[%clk 0:01:47.4]} 20... Nd7 {[%clk 0:01:42.2]} 21.
Rhe1 {[%clk 0:01:43.9]} 21... Raf8 {[%clk 0:01:04.8]} 22. g5 {[%clk 0:01:33]}
22... hxg5 {[%clk 0:01:03.8]} 23. hxg5 {[%clk 0:01:33.9]} 23... Rf5 {[%clk
0:00:45.5]} 24. Qxe6+ {[%clk 0:01:18]} 24... Qxe6 {[%clk 0:00:44.8]} 25. Rxe6
{[%clk 0:01:18.9]} 25... Rxg5 {[%clk 0:00:45.5]} 26. Rxg6 {[%clk 0:01:09.3]}
26... Rxg6 {[%clk 0:00:37.8]} 27. Bxg6 {[%clk 0:01:10.2]} 27... Nf6 {[%clk
0:00:38]} 28. Be5 {[%clk 0:01:08.2]} 28... Nd5 {[%clk 0:00:36.3]} 29. Be4 {[%clk
0:01:05.8]} 29... Rf2 {[%clk 0:00:32.1]} 30. Rd3 {[%clk 0:00:47.1]} 30... Bh6
{[%clk 0:00:20.5]} 31. Rg3+ {[%clk 0:00:42.9]} 31... Kf7 {[%clk 0:00:20.1]} 32.
Rf3+ {[%clk 0:00:39.9]} 32... Rxf3 {[%clk 0:00:20.1]} 33. Bxf3 {[%clk
0:00:39.3]} 33... Ke6 {[%clk 0:00:20]} 34. Bxd5+ {[%clk 0:00:32.3]} 34... cxd5
{[%clk 0:00:17.7]} 35. b3 {[%clk 0:00:31.3]} 35... Bd2 {[%clk 0:00:14.6]} 36. g4
{[%clk 0:00:23.4]} 36... Bc3 {[%clk 0:00:12]} 37. g5 {[%clk 0:00:18.5]} 37...
Kf5 {[%clk 0:00:11.8]} 38. Bf6 {[%clk 0:00:16.3]} 38... Kg6 {[%clk 0:00:12.4]}
39. bxa4 {[%clk 0:00:15.4]} 39... bxa4 {[%clk 0:00:12.3]} 40. Kc1 {[%clk
0:00:15.4]} 40... Kf5 {[%clk 0:00:12.4]} 41. Kd1 {[%clk 0:00:15.4]} 41... Bb2
{[%clk 0:00:12.5]} 42. Be7 {[%clk 0:00:15]} 42... Bxd4 {[%clk 0:00:12.3]} 43.
Ke2 {[%clk 0:00:13]} 43... Be5 {[%clk 0:00:10.5]} 44. Kd3 {[%clk 0:00:12.9]}
44... Ke6 {[%clk 0:00:10.8]} 45. Bb4 {[%clk 0:00:10.6]} 45... Kf5 {[%clk
0:00:10.2]} 46. c4 {[%clk 0:00:07.4]} 46... dxc4+ {[%clk 0:00:05.5]} 47. Kxc4
{[%clk 0:00:08.3]} 47... Kxg5 {[%clk 0:00:06.2]} 48. Kb5 {[%clk 0:00:08.6]}
48... Bb2 {[%clk 0:00:05.8]} 49. Kxa4 {[%clk 0:00:08.9]} 49... Bxa3 {[%clk
0:00:06.5]} 1/2-1/2